lending/lending_fUSD_20260310
["ID","MTS","AMOUNT","RATE_DAILY","PERIOD"]
[408150999,1773180643987,-303.80696665,0.00016164,2]
[408151000,1773180643996,-500.0,0.00016313,2]
[408151001,1773180644006,-1000.0,0.00016316,2]
[408151002,1773180644015,-1000.0,0.00016316,2]
[408151003,1773180644024,-2000.0,0.00016316,2]
[408151004,1773180644033,-1959.11608175,0.00016316,2]
[408151005,1773180644043,-2000.0,0.00016316,2]
[408151006,1773180644052,-200.0,0.0001634,2]
[408151007,1773180644062,-7342.55712531,0.00016342,2]
[408151008,1773180644071,-510.25,0.00016438,2]
[408151009,1773180644082,-510.25,0.00016438,2]
[408151010,1773180644092,-510.25,0.00016438,2]
[408151011,1773180644101,-510.25,0.00016438,2]
[408151012,1773180644111,-510.25,0.00016438,2]
[408151013,1773180644120,-510.25,0.00016438,2]
[408151014,1773180644130,-510.25,0.00016438,2]
[408151015,1773180644139,-510.25,0.00016438,2]
[408151016,1773180644148,-510.25,0.00016438,2]
[408151017,1773180644158,-510.25,0.00016438,2]
[408151018,1773180644167,-510.25,0.00016438,2]
[408151019,1773180644176,-200.0,0.00016438,2]
[408151020,1773180644185,-500.0,0.00016438,2]
[408151021,1773180644194,-400.53,0.00016438,2]
[408151022,1773180644203,-1142.32,0.00016468,2]
[408151023,1773180644212,-500.0,0.00016493,2]
[408151024,1773180644222,-500.0,0.00016516,2]
[408151025,1773180644231,-500.0,0.00016548,2]
[408151026,1773180644240,-622.62914275,0.00016587,2]
[408151027,1773180644251,-362.53227662,0.000166,2]
[408151028,1773180644260,-500.0,0.00016602,2]
[408151029,1773180644269,-433.0,0.00016622,2]
[408151030,1773180644279,-500.0,0.00016657,2]
[408151031,1773180644288,-500.0,0.00016712,2]
[408151032,1773180644298,-235.8695406,0.0001672,2]
[408151033,1773180644307,-500.0,0.00016767,2]
[408151034,1773180644316,-15898.61407384,0.00016771,2]
[408151035,1773180644326,-6273.67906402,0.00016774,2]
[408151036,1773180644336,-500.0,0.00016822,2]
[408151037,1773180644345,-1284.93031767,0.00016864,2]
[408151038,1773180644355,-2500.0,0.00016864,2]
[408151039,1773180644365,-326.0,0.00016876,2]
[408151040,1773180644374,-5900.0,0.000169,6]
[408151041,1773180644384,-7342.55712531,0.00016932,2]
[408151042,1773180644393,-401.25902058,0.00016973,2]
[408151043,1773180644402,-500.0,0.00016973,2]
[408151044,1773180644411,-500.0,0.00016973,2]
[408151045,1773180644420,-500.0,0.00016973,2]
[408151046,1773180644429,-500.0,0.00016973,2]
[408151047,1773180644438,-500.0,0.00016973,2]
[408151048,1773180644447,-500.0,0.00016973,2]
[408151049,1773180644457,-500.0,0.00016973,2]
[408151050,1773180644466,-525.62729725,0.00016973,2]
[408151051,1773180644475,-500.24925891,0.00016973,2]
[408151052,1773180644485,-500.0,0.00016973,2]
[408151053,1773180644496,-500.0,0.00016973,2]
[408151054,1773180644505,-500.0,0.00016973,2]
[408151055,1773180644514,-500.0,0.00016973,2]
[408151056,1773180644523,-500.0,0.00016973,2]
[408151057,1773180644532,-164.68602851,0.00016973,2]
[408151058,1773180644542,-500.0,0.00016973,2]
[408151059,1773180644551,-158.89335882,0.00016973,2]
[408151060,1773180644561,-500.19933179,0.00016973,2]
[408151061,1773180644570,-500.0,0.00016973,2]
[408151062,1773180644579,-438.17886325,0.00016973,2]
[408151063,1773180644589,-500.0,0.00016973,2]
[408151064,1773180644598,-500.0,0.00016973,2]
[408151065,1773180644607,-500.17118036,0.00016973,2]
[408151066,1773180644616,-500.0,0.00016973,2]
[408151067,1773180644626,-555.93722716,0.00016973,2]
[408151068,1773180644636,-500.0,0.00016973,2]
[408151069,1773180644645,-162.16516283,0.00016973,2]
[408151070,1773180644655,-500.0,0.00016973,2]
[408151071,1773180644664,-564.98385943,0.00016973,2]
[408151072,1773180644673,-311.58893439,0.00016973,2]
[408151073,1773180644682,-500.0,0.00016973,2]
[408151074,1773180644694,-161.50637135,0.00016973,2]
[408151075,1773180644704,-210.19245283,0.00016973,2]
[408151076,1773180644713,-500.0,0.00016973,2]
[408151077,1773180644723,-336.48617471,0.00016973,2]
[408151078,1773180644732,-500.0,0.00016973,2]
[408151079,1773180644742,-500.0,0.00016973,2]
[408151080,1773180644752,-500.0,0.00016973,2]
[408151081,1773180644763,-500.0,0.00016973,2]
[408151082,1773180644773,-516.85988717,0.00016973,2]
[408151083,1773180644782,-500.0,0.00016973,2]
[408151084,1773180644792,-500.0,0.00016973,2]
[408151085,1773180644801,-500.0,0.00016973,2]
[408151086,1773180644811,-500.0,0.00016973,2]
[408151087,1773180644820,-162.45092924,0.00016973,2]
[408151088,1773180644829,-166.21138236,0.00016973,2]
[408151089,1773180644839,-500.0,0.00016973,2]
[408151090,1773180644849,-500.0,0.00016973,2]
[408151091,1773180644858,-500.0,0.00016973,2]
[408151092,1773180644868,-500.0,0.00016973,2]
[408151093,1773180644877,-500.0,0.00016973,2]
[408151094,1773180644887,-510.25,0.00016985,2]
[408151095,1773180644896,-500.0,0.00016985,2]
[408151096,1773180644905,-289.92372072,0.0001699,2]
[408151097,1773180644915,-628409.60588007,0.00017,2]
[408151098,1773180644924,-500.0,0.00017,2]
[408151099,1773180644934,-4598.53071574,0.00017052,2]
[408151100,1773180644943,-178.66,0.00017053,2]
[408151101,1773180644952,-587.0,0.00017054,2]
[408151102,1773180644961,-500.0,0.00017065,2]
[408151103,1773180644971,-54243.60633042,0.000171,2]
[408151104,1773180644980,-10960.6896483,0.0001711,2]
[408151105,1773180644989,-1142.32,0.00017184,2]
[408151106,1773180644998,-2351.0,0.000172,2]
[408151107,1773180645008,-541.08770395,0.0001725,2]
[408151108,1773180645018,-5360.27389109,0.0001725,2]
[408151109,1773180645027,-161.2390476,0.0001725,2]
[408151110,1773180645037,-1000.0,0.00017278,2]
[408151111,1773180645047,-247.96,0.0001735,2]
[408151112,1773180645056,-15898.61407384,0.00017393,2]
[408151113,1773180645066,-795.22,0.00017412,2]
[408151114,1773180645076,-500.0,0.00017412,2]
[408151115,1773180645085,-500.0,0.00017412,2]
[408151116,1773180645095,-3000.0,0.00017412,2]
[408151117,1773180645104,-1000.0,0.00017521,2]
[408151118,1773180645113,-1000.0,0.00017521,2]
[408151119,1773180645123,-723.08526517,0.00017521,2]
[408151120,1773180645132,-1000.0,0.00017521,2]
[408151121,1773180645142,-1000.0,0.00017521,2]
[408151122,1773180645152,-1000.0,0.00017521,2]
[408151123,1773180645161,-1000.0,0.00017521,2]
[408151124,1773180645170,-1000.0,0.00017521,2]
[408151125,1773180645180,-1000.0,0.00017521,2]
[408151126,1773180645189,-1000.0,0.00017521,2]
[408151127,1773180645198,-1000.0,0.00017521,2]
[408151128,1773180645208,-1000.0,0.00017521,2]
[408151129,1773180645217,-1000.0,0.00017521,2]
[408151130,1773180645226,-1000.0,0.00017521,2]
[408151131,1773180645235,-1000.0,0.00017521,2]
[408151132,1773180645244,-1000.0,0.00017521,2]
[408151133,1773180645254,-1000.0,0.00017521,2]
[408151134,1773180645263,-1000.92260886,0.00017521,2]
[408151135,1773180645273,-1000.0,0.00017521,2]
[408151136,1773180645282,-1000.0,0.00017521,2]
[408151137,1773180645292,-596.36617318,0.00017521,2]
[408151138,1773180645301,-1000.0,0.00017521,2]
[408151139,1773180645310,-1000.0,0.00017521,2]
[408151140,1773180645320,-1000.0,0.00017521,2]
[408151141,1773180645329,-1000.0,0.00017521,2]
[408151142,1773180645339,-575.55800162,0.00017521,2]
[408151143,1773180645348,-1000.0,0.00017521,2]
[408151144,1773180645357,-558.85528432,0.00017521,2]
[408151145,1773180645367,-1000.0,0.00017521,2]
[408151146,1773180645376,-1000.0,0.00017521,2]
[408151147,1773180645385,-605.45252019,0.00017521,2]
[408151148,1773180645395,-1000.0,0.00017521,2]
[408151149,1773180645404,-1000.0,0.00017521,2]
[408151150,1773180645414,-1000.0,0.00017521,2]
[408151151,1773180645424,-7342.55712531,0.00017523,2]
[408151152,1773180645433,-6273.67906402,0.00017555,2]
[408151153,1773180645442,-701.33501871,0.000177,2]
[408151154,1773180645451,-2798.92,0.00017728,2]
[408151155,1773180645461,-2709.89,0.00017728,2]
[408151156,1773180645471,-1000.0,0.00017761,2]
[408151157,1773180645480,-235.8695406,0.0001778,2]
[408151158,1773180645491,-200.76649827,0.00017808,2]
[408151159,1773180645501,-800.0,0.00017808,2]
[408151160,1773180645510,-1007.12616149,0.0001786,2]
[408151161,1773180645519,-3975.0,0.00017879,2]
[408151162,1773180645529,-400.53,0.0001788,2]
[408151163,1773180645539,-1228.83497507,0.0001789,2]
[408151164,1773180645548,-1076.79989794,0.0001789,2]
[408151165,1773180645558,-4749.22872573,0.0001789,2]
[408151166,1773180645567,-257.87725905,0.000179,2]
[408151167,1773180645577,-257.87725905,0.000179,2]
[408151168,1773180645586,-736.0,0.00017936,2]
[408151169,1773180645596,-3500.0,0.0001796,2]
[408151170,1773180645605,-7201.42441341,0.0001799,2]
[408151171,1773180645615,-7738.90001275,0.00018,5]
[408151172,1773180645624,-65594.12178865,0.00018,2]
[408151173,1773180645633,-1033.7630252,0.00018,2]
[408151174,1773180645643,-308.80438942,0.00018,2]
[408151175,1773180645652,-1003.00365502,0.00018,2]
[408151176,1773180645662,-15898.61407384,0.00018016,2]
[408151177,1773180645671,-410.76408414,0.00018068,2]
[408151178,1773180645681,-1500.0,0.00018068,2]
[408151179,1773180645695,-1500.0,0.00018068,2]
[408151180,1773180645704,-1500.0,0.00018068,2]
[408151181,1773180645713,-1500.0,0.00018068,2]
[408151182,1773180645723,-1500.0,0.00018068,2]
[408151183,1773180645734,-1003.8642618,0.00018068,2]
[408151184,1773180645744,-1500.0,0.00018068,2]
[408151185,1773180645754,-1500.0,0.00018068,2]
[408151186,1773180645764,-1500.0,0.00018068,2]
[408151187,1773180645774,-1500.0,0.00018068,2]
[408151188,1773180645783,-1545.31641049,0.00018068,2]
[408151189,1773180645793,-1500.0,0.00018068,2]
[408151190,1773180645802,-1343.56997099,0.00018068,2]
[408151191,1773180645811,-1500.0,0.00018068,2]
[408151192,1773180645821,-1500.0,0.00018068,2]
[408151193,1773180645830,-1500.0,0.00018068,2]
[408151194,1773180645840,-409.60365407,0.00018068,2]
[408151195,1773180645849,-1500.0,0.00018068,2]
[408151196,1773180645859,-1500.0,0.00018068,2]
[408151197,1773180645869,-1500.0,0.00018068,2]
[408151198,1773180645878,-1500.0,0.00018068,2]
[408151199,1773180645888,-1500.0,0.00018068,2]
[408151200,1773180645897,-1500.0,0.00018068,2]
[408151201,1773180645906,-1500.0,0.00018068,2]
[408151202,1773180645915,-1500.0,0.00018068,2]
[408151203,1773180645924,-1500.0,0.00018068,2]
[408151204,1773180645934,-1500.0,0.00018068,2]
[408151205,1773180645943,-7342.55712531,0.00018113,2]
[408151206,1773180645952,-165.24,0.00018133,2]
[408151207,1773180645962,-1000.0,0.00018197,2]
[408151208,1773180645972,-500.0,0.00018286,3]
[408151209,1773180645981,-6273.67906402,0.00018337,2]
[408151210,1773180645990,-4784.12757497,0.00018367,3]
[408151211,1773180645999,-178.66,0.00018414,2]
[408151212,1773180646008,-4000.0,0.00018508,2]
[408151213,1773180646018,-150.0,0.00018549,2]
[408151214,1773180646027,-168.0,0.0001856,2]
[408151215,1773180646036,-2000.0,0.00018616,2]
[408151216,1773180646046,-2000.0,0.00018616,2]
[408151217,1773180646058,-2000.0,0.00018616,2]
[408151218,1773180646068,-2000.0,0.00018616,2]
[408151219,1773180646078,-2000.0,0.00018616,2]
[408151220,1773180646087,-451.46485762,0.00018616,2]
[408151221,1773180646097,-1910.9569044,0.00018616,2]
[408151222,1773180646107,-2000.0,0.00018616,2]
[408151223,1773180646116,-1173.09211667,0.00018616,2]
[408151224,1773180646126,-2125.59725555,0.00018616,2]
[408151225,1773180646136,-2000.0,0.00018616,2]
[408151226,1773180646145,-2000.0,0.00018616,2]
[408151227,1773180646155,-671.63748537,0.00018616,2]
[408151228,1773180646165,-1039.08459465,0.00018616,2]
[408151229,1773180646174,-2000.0,0.00018616,2]
[408151230,1773180646183,-2000.0,0.00018616,2]
[408151231,1773180646193,-2000.0,0.00018616,2]
[408151232,1773180646203,-2000.0,0.00018616,2]
[408151233,1773180646212,-2000.0,0.00018616,2]
[408151234,1773180646318,-1828.83911274,0.00018616,2]
[408151235,1773180646328,-2000.0,0.00018616,2]
[408151236,1773180646337,-1755.30859165,0.00018616,2]
[408151237,1773180646346,-2000.0,0.00018616,2]
[408151238,1773180646356,-15898.61407384,0.00018638,2]
[408151239,1773180646365,-540.0,0.0001868,2]
[408151240,1773180646374,-7342.55712531,0.00018703,2]
[408151241,1773180646383,-162.0,0.0001872,2]
[408151242,1773180646393,-2806.0,0.0001872,2]
[408151243,1773180646402,-250.0,0.00018782,2]
[408151244,1773180646411,-160.0,0.00018824,2]
[408151245,1773180646420,-172.91703981,0.00018824,2]
[408151246,1773180646429,-235.8695406,0.0001884,2]
[408151247,1773180646438,-166.66,0.00018841,2]
[408151248,1773180646447,-284.85240697,0.00018868,2]
[408151249,1773180646456,-170.962384,0.00018898,2]
[408151250,1773180646465,-3292.0,0.0001892,2]
[408151251,1773180646475,-424.139,0.00018999,2]
[408151252,1773180646485,-670.58624095,0.00018999,2]
[408151253,1773180646494,-500.0,0.00018999,2]
[408151255,1773180646504,-250.0,0.00018999,2]
[408151257,1773180646513,-187.88530125,0.00018999,2]
[408151260,1773180646522,-1328.27659266,0.00018999,2]
[408151261,1773180646532,-500.0,0.00018999,2]
[408151263,1773180646541,-1500.0,0.00018999,2]
[408151265,1773180646550,-626.54460475,0.00018999,2]
[408151267,1773180646559,-1500.0,0.00018999,2]
[408151269,1773180646568,-1500.0,0.00018999,2]
[408151271,1773180646578,-1500.0,0.00018999,2]
[408151273,1773180646587,-1500.0,0.00018999,2]
[408151275,1773180646596,-1500.0,0.00018999,2]
[408151276,1773180646605,-1500.0,0.00018999,2]
[408151277,1773180646615,-3000.0,0.00018999,2]
[408151278,1773180646624,-1500.0,0.00018999,2]
[408151279,1773180646635,-3000.0,0.00018999,2]
[408151280,1773180646643,-3000.0,0.00018999,2]
[408151281,1773180646652,-1500.0,0.00018999,2]
[408151282,1773180646661,-3000.0,0.00018999,2]
[408151283,1773180646670,-1500.0,0.00018999,2]
[408151284,1773180646679,-3000.0,0.00018999,2]
[408151285,1773180646692,-3000.0,0.00018999,2]
[408151286,1773180646702,-1500.0,0.00018999,2]
[408151287,1773180646711,-1500.0,0.00018999,2]
[408151288,1773180646720,-3000.0,0.00018999,2]
[408151289,1773180646731,-1506.77280813,0.00018999,2]
[408151290,1773180646740,-250.0,0.00018999,2]
[408151291,1773180646750,-1500.0,0.00018999,2]
[408151292,1773180646759,-3000.0,0.00018999,2]
[408151293,1773180646770,-1500.0,0.00018999,2]
[408151294,1773180646779,-3000.0,0.00018999,2]
[408151295,1773180646789,-151.0,0.00018999,2]
[408151296,1773180646798,-3000.0,0.00018999,2]
[408151297,1773180646808,-3000.0,0.00018999,2]
[408151298,1773180646817,-200.0,0.00018999,2]
[408151299,1773180646826,-3000.0,0.00018999,2]
[408151300,1773180646835,-3000.0,0.00018999,2]
[408151301,1773180646844,-174.61919141,0.00018999,2]
[408151302,1773180646854,-500.0,0.00018999,2]
[408151303,1773180646863,-1000.0,0.00018999,2]
[408151304,1773180646872,-644.79446245,0.00018999,2]
[408151305,1773180646882,-1500.0,0.00018999,2]
[408151306,1773180646891,-1500.0,0.00018999,2]
[408151307,1773180646900,-1500.0,0.00018999,2]
[408151308,1773180646909,-262.90206542,0.00018999,2]
[408151309,1773180646919,-1500.0,0.00018999,2]
[408151310,1773180646928,-1000.0,0.00018999,2]
[408151311,1773180646937,-194.72792766,0.00018999,2]
[408151312,1773180646946,-4190.0,0.00019,2]
[408151313,1773180646956,-21925.96350167,0.00019,2]
[408151314,1773180646965,-350.0,0.00019036,2]
[408151315,1773180646975,-168.0,0.00019045,2]
[408151316,1773180646984,-500.0,0.00019054,2]
[408151317,1773180646994,-151.0,0.00019054,2]
[408151318,1773180647003,-2000.0,0.00019056,2]
[408151319,1773180647013,-1000.0,0.00019103,2]
[408151320,1773180647022,-500.0,0.00019109,2]
[408151321,1773180647032,-151.0,0.00019109,2]
[408151322,1773180647041,-6273.67906402,0.00019118,2]
[408151323,1773180647051,-500.0,0.00019164,2]
[408151324,1773180647065,-151.0,0.00019164,2]
[408151325,1773180647075,-2500.0,0.00019164,2]
[408151326,1773180647084,-665.26185461,0.00019164,2]
[408151327,1773180647094,-2500.0,0.00019164,2]
[408151328,1773180647103,-2500.0,0.00019164,2]
[408151329,1773180647113,-2500.0,0.00019164,2]
[408151330,1773180647122,-1639.92342412,0.00019164,2]
[408151331,1773180647131,-2500.0,0.00019164,2]
[408151332,1773180647140,-211.61428394,0.00019164,2]
[408151333,1773180647150,-2500.0,0.00019164,2]
[408151334,1773180647160,-2500.0,0.00019164,2]
[408151335,1773180647169,-2500.0,0.00019164,2]
[408151336,1773180647179,-1535.5208986,0.00019164,2]
[408151337,1773180647188,-503.18464269,0.00019164,2]
[408151338,1773180647198,-2500.0,0.00019164,2]
[408151339,1773180647207,-2500.0,0.00019164,2]
[408151340,1773180647217,-500.0,0.0001917,2]
[408151341,1773180647226,-168.0,0.00019176,2]
[408151342,1773180647236,-3000.0,0.00019178,2]
[408151343,1773180647245,-3000.0,0.00019178,2]
[408151344,1773180647254,-3000.0,0.00019178,2]
[408151345,1773180647264,-3000.0,0.00019178,2]
[408151346,1773180647273,-3000.0,0.00019178,2]
[408151347,1773180647284,-3000.0,0.00019178,2]
[408151348,1773180647293,-3000.0,0.00019178,2]
[408151349,1773180647303,-3000.0,0.00019178,2]
[408151350,1773180647313,-558.0,0.00019178,2]
[408151351,1773180647323,-150.0,0.00019178,2]
[408151352,1773180647332,-2000.0,0.000192,2]
[408151353,1773180647343,-500.0,0.00019219,2]
[408151354,1773180647352,-151.0,0.00019219,2]
[408151355,1773180647361,-500.0,0.00019233,7]
[408151356,1773180647371,-168.0,0.00019234,2]
[408151357,1773180647384,-15898.61407384,0.00019261,2]
[408151358,1773180647404,-500.0,0.00019274,2]
[408151359,1773180647425,-151.0,0.00019274,2]
[408151360,1773180647436,-1000.0,0.00019274,2]
[408151361,1773180647447,-7342.55712531,0.00019293,2]
[408151362,1773180647456,-400.53,0.00019322,2]
[408151363,1773180647467,-500.0,0.00019329,2]
[408151364,1773180647479,-151.0,0.00019329,2]
[408151365,1773180647490,-350.0,0.00019331,2]
[408151366,1773180647501,-1252.0,0.00019349,2]
[408151367,1773180647512,-2871.0,0.0001936,2]
[408151368,1773180647525,-761.0,0.00019373,2]
[408151369,1773180647534,-150.0,0.00019373,2]
[408151370,1773180647544,-150.0,0.00019373,2]
[408151371,1773180647553,-160.0,0.00019373,2]
[408151372,1773180647562,-1042.0,0.00019375,2]
[408151373,1773180647572,-500.0,0.00019384,2]
[408151374,1773180647581,-151.0,0.00019384,2]
[408151375,1773180647591,-700.0,0.00019389,2]
[408151376,1773180647601,-1280.0,0.00019394,2]
[408151377,1773180647611,-271.641,0.00019394,2]
[408151378,1773180647620,-1213.0,0.00019394,2]
[408151379,1773180647629,-922.0,0.00019394,2]
[408151380,1773180647639,-414.0,0.00019394,2]
[408151381,1773180647648,-2461.0,0.00019394,2]
[408151382,1773180647657,-587.0,0.000194,2]
[408151383,1773180647667,-286.0,0.000194,2]
[408151384,1773180647677,-1100.0,0.000194,7]
[408151385,1773180647688,-500.0,0.00019439,2]
[408151386,1773180647700,-151.0,0.00019439,2]
[408151387,1773180647710,-153.36839608,0.00019451,2]
[408151388,1773180647721,-268.96748512,0.00019452,2]
[408151389,1773180647731,-166.66,0.00019463,2]
[408151390,1773180647740,-168.0,0.00019491,2]
[408151391,1773180647750,-500.0,0.00019494,2]
[408151392,1773180647759,-151.0,0.00019494,2]
[408151393,1773180647771,-168.0,0.00019497,2]
[408151394,1773180647780,-1100.0,0.000195,7]
[408151395,1773180647790,-500.0,0.00019507,7]
[408151396,1773180647799,-300.0,0.00019547,2]
[408151397,1773180647808,-181.08010149,0.00019547,2]
[408151398,1773180647818,-243.08739965,0.00019547,2]
[408151399,1773180647827,-1000.0,0.00019548,2]
[408151400,1773180647838,-168.0,0.00019549,2]
[408151401,1773180647847,-500.0,0.00019549,2]
[408151402,1773180647857,-151.0,0.00019549,2]
[408151403,1773180647866,-500.0,0.00019571,4]
[408151404,1773180647875,-1124.69916886,0.000196,2]
[408151405,1773180647884,-1147.60366928,0.000196,2]
[408151406,1773180647894,-1042.97319112,0.000196,2]
[408151407,1773180647904,-1124.61449359,0.000196,2]
[408151408,1773180647913,-1064.25305004,0.000196,2]
[408151409,1773180647922,-1117.47073039,0.000196,2]
[408151410,1773180647931,-1053.02545123,0.000196,2]
[408151411,1773180647942,-1041.80079316,0.000196,2]
[408151412,1773180647962,-1105.06521901,0.000196,2]
[408151413,1773180647976,-952.23523324,0.000196,2]
[408151414,1773180647987,-1032.67231772,0.000196,2]
[408151415,1773180647998,-1103.42836983,0.000196,2]
[408151416,1773180648007,-1011.28543221,0.000196,2]
[408151417,1773180648018,-1109.06737312,0.000196,2]
[408151418,1773180648028,-1029.673175,0.000196,2]
[408151419,1773180648039,-1087.95207431,0.000196,2]
[408151420,1773180648052,-1146.68047461,0.000196,2]
[408151421,1773180648073,-1026.37095667,0.000196,2]
[408151422,1773180648096,-1139.18575439,0.000196,2]
[408151423,1773180648112,-1012.44873872,0.000196,2]
[408151424,1773180648124,-1132.53538592,0.000196,2]
[408151425,1773180648136,-1132.87573443,0.000196,2]
[408151426,1773180648149,-1105.16080102,0.000196,2]
[408151427,1773180648159,-1123.40033065,0.000196,2]
[408151428,1773180648169,-1142.79239211,0.000196,2]
[408151429,1773180648181,-1751.48300235,0.000196,2]
[408151430,1773180648194,-292.21,0.000196,30]
[408151431,1773180648204,-1436.70614573,0.000196,5]
[408151432,1773180648218,-283.25748126,0.000196,2]
[408151433,1773180648233,-2000.0,0.000196,2]
[408151434,1773180648245,-1100.0,0.000196,7]
[408151435,1773180648256,-500.0,0.00019604,2]
[408151436,1773180648271,-151.0,0.00019604,2]
[408151437,1773180648281,-391.0,0.00019609,2]
[408151438,1773180648292,-500.0,0.00019659,2]
[408151439,1773180648305,-151.0,0.00019659,2]
[408151440,1773180648315,-781.59,0.00019661,2]
[408151441,1773180648325,-5745.27996071,0.00019683,5]
[408151442,1773180648338,-1977.67132423,0.000197,2]
[408151443,1773180648350,-1100.0,0.000197,7]
[408151444,1773180648362,-3000.0,0.00019712,2]
[408151445,1773180648375,-3056.08878516,0.00019712,2]
[408151446,1773180648387,-2094.83845957,0.00019712,2]
[408151447,1773180648397,-1714.55915429,0.00019712,2]
[408151448,1773180648409,-1742.74250259,0.00019712,2]
[408151449,1773180648421,-997.89893193,0.00019712,2]
[408151450,1773180648431,-2285.67076732,0.00019712,2]
[408151451,1773180648444,-3000.0,0.00019712,2]
[408151452,1773180648454,-3000.0,0.00019712,2]
[408151453,1773180648464,-564.55995824,0.00019712,2]
[408151454,1773180648477,-500.0,0.00019724,2]
[408151455,1773180648487,-510.25,0.00019725,2]
[408151456,1773180648499,-529.61791857,0.00019725,2]
[408151457,1773180648511,-795.22,0.00019725,2]
[408151458,1773180648522,-500.0,0.00019725,2]
[408151459,1773180648532,-500.0,0.00019725,2]
[408151460,1773180648542,-250.0,0.00019726,2]
[408151461,1773180648552,-174.359556,0.00019726,2]
[408151462,1773180648563,-174.359556,0.00019726,2]
[408151463,1773180648572,-500.0,0.00019726,2]
[408151464,1773180648583,-497.49770464,0.00019726,2]
[408151465,1773180648594,-500.0,0.00019726,2]
[408151466,1773180648604,-500.0,0.00019726,2]
[408151467,1773180648614,-500.0,0.00019726,2]
[408151468,1773180648623,-500.0,0.00019726,2]
[408151469,1773180648634,-500.0,0.00019726,2]
[408151470,1773180648644,-500.0,0.00019726,2]
[408151471,1773180648654,-500.0,0.00019726,2]
[408151472,1773180648665,-500.0,0.00019726,2]
[408151473,1773180648676,-500.0,0.00019726,2]
[408151474,1773180648688,-500.0,0.00019726,2]
[408151475,1773180648704,-404.44403902,0.00019726,2]
[408151476,1773180648716,-500.0,0.00019726,2]
[408151477,1773180648726,-500.0,0.00019726,2]
[408151478,1773180648737,-500.0,0.00019726,2]
[408151479,1773180648747,-190.16,0.00019726,2]
[408151480,1773180648758,-500.0,0.00019726,2]
[408151481,1773180648768,-439.8301473,0.00019726,2]
[408151482,1773180648777,-1766.57,0.00019726,2]
[408151483,1773180648788,-1766.57,0.00019726,2]
[408151484,1773180648799,-1766.57,0.00019726,2]
[408151485,1773180648809,-1766.57,0.00019726,2]
[408151486,1773180648820,-1766.57,0.00019726,2]
[408151487,1773180648830,-1766.57,0.00019726,2]
[408151488,1773180648842,-1766.57,0.00019726,2]
[408151489,1773180648853,-1766.57,0.00019726,2]
[408151490,1773180648862,-1766.57,0.00019726,2]
[408151491,1773180648873,-1766.57,0.00019726,2]
[408151492,1773180648882,-1766.57,0.00019726,2]
[408151493,1773180648892,-1766.57,0.00019726,2]
[408151494,1773180648902,-1766.57,0.00019726,2]
[408151495,1773180648912,-1766.57,0.00019726,2]
[408151496,1773180648921,-1766.57,0.00019726,2]
[408151497,1773180648930,-1766.57,0.00019726,2]
[408151498,1773180648939,-1766.57,0.00019726,2]
[408151499,1773180648950,-1766.57,0.00019726,2]
[408151500,1773180648959,-1766.57,0.00019726,2]
[408151501,1773180648968,-1766.57,0.00019726,2]
[408151502,1773180648978,-1766.57,0.00019726,2]
[408151503,1773180648987,-1766.57,0.00019726,2]
[408151504,1773180648996,-1766.57,0.00019726,2]
[408151505,1773180649005,-1766.78298099,0.00019726,2]
[408151506,1773180649014,-500.0,0.00019726,2]
[408151507,1773180649023,-500.5,0.00019726,2]
[408151508,1773180649032,-1250.51,0.00019726,2]
[408151509,1773180649041,-1250.51,0.00019726,2]